[Event "*** Titled Tuesday Blitz"]
[Site "Chess.com"]
[Date "2020.10.20"]
[Round "7"]
[White "ezkybel"]
[Black "chessmachine14"]
[Result "1-0"]
[WhiteElo "2455"]
[BlackElo "2329"]
[TimeControl "180+1"]
[EndTime "11:19:47 PDT"]
[Termination "ezkybel won by checkmate"]

1. b3 {[%clk 0:02:53.6]} 1... e5 {[%clk 0:02:57.7]} 2. Bb2 {[%clk 0:02:52.5]}
2... d6 {[%clk 0:02:58.2]} 3. e3 {[%clk 0:02:51.4]} 3... Nf6 {[%clk 0:02:58.8]}
4. c4 {[%clk 0:02:48.2]} 4... Be7 {[%clk 0:02:59.2]} 5. Nc3 {[%clk 0:02:43.6]}
5... O-O {[%clk 0:02:59.6]} 6. g3 {[%clk 0:02:43.8]} 6... Nc6 {[%clk 0:02:51.4]}
7. Bg2 {[%clk 0:02:41.7]} 7... a5 {[%clk 0:02:51.6]} 8. Nge2 {[%clk 0:02:38.2]}
8... Nb4 {[%clk 0:02:50.6]} 9. d4 {[%clk 0:02:31.9]} 9... Bf5 {[%clk 0:02:17.9]}
10. O-O {[%clk 0:02:21.1]} 10... Nd3 {[%clk 0:02:14.9]} 11. Ba3 {[%clk
0:02:14.8]} 11... e4 {[%clk 0:02:10.7]} 12. f3 {[%clk 0:02:03.9]} 12... exf3
{[%clk 0:01:54.1]} 13. Rxf3 {[%clk 0:02:00.6]} 13... Bg6 {[%clk 0:01:51]} 14.
Qd2 {[%clk 0:01:44.1]} 14... Nb4 {[%clk 0:01:46.6]} 15. Nf4 {[%clk 0:01:40.9]}
15... Ne4 {[%clk 0:01:43.2]} 16. Nxe4 {[%clk 0:01:34.5]} 16... Bxe4 {[%clk
0:01:42.9]} 17. Rf2 {[%clk 0:01:34.4]} 17... Bxg2 {[%clk 0:01:33]} 18. Kxg2
{[%clk 0:01:29]} 18... d5 {[%clk 0:01:33.3]} 19. c5 {[%clk 0:01:24.6]} 19... Na6
{[%clk 0:01:22.6]} 20. Raf1 {[%clk 0:01:23.2]} 20... c6 {[%clk 0:01:22.5]} 21.
h4 {[%clk 0:01:17.4]} 21... Nc7 {[%clk 0:01:22]} 22. h5 {[%clk 0:01:12]} 22...
Bg5 {[%clk 0:01:16.4]} 23. Bc1 {[%clk 0:01:10.4]} 23... Qe7 {[%clk 0:01:14.6]}
24. Qd1 {[%clk 0:01:04.9]} 24... Rfe8 {[%clk 0:01:12]} 25. Qg4 {[%clk
0:01:04.6]} 25... Qe4+ {[%clk 0:01:07.6]} 26. Kh2 {[%clk 0:01:03.2]} 26... h6
{[%clk 0:01:00.5]} 27. Qf3 {[%clk 0:00:59.6]} 27... Re7 {[%clk 0:00:40.9]} 28.
Qxe4 {[%clk 0:00:58.5]} 28... Rxe4 {[%clk 0:00:40.8]} 29. Nh3 {[%clk 0:00:56.9]}
29... f6 {[%clk 0:00:36.8]} 30. Nxg5 {[%clk 0:00:51.9]} 30... hxg5 {[%clk
0:00:36.9]} 31. Bd2 {[%clk 0:00:52.4]} 31... a4 {[%clk 0:00:29.8]} 32. b4 {[%clk
0:00:52.4]} 32... Kf7 {[%clk 0:00:18.1]} 33. Kg2 {[%clk 0:00:52.7]} 33... Nb5
{[%clk 0:00:18.1]} 34. h6 {[%clk 0:00:49.4]} 34... g6 {[%clk 0:00:17.9]} 35.
Rxf6+ {[%clk 0:00:48.8]} 35... Kg8 {[%clk 0:00:17.6]} 36. Rf7 {[%clk 0:00:47]}
36... Nxd4 {[%clk 0:00:12]} 37. Rg7+ {[%clk 0:00:41.3]} 37... Kh8 {[%clk
0:00:10.2]} 38. exd4 {[%clk 0:00:41]} 38... Re2+ {[%clk 0:00:10.5]} 39. Rf2
{[%clk 0:00:41.6]} 39... Rae8 {[%clk 0:00:10.9]} 40. Bxg5 {[%clk 0:00:40.7]}
40... Rxf2+ {[%clk 0:00:08.3]} 41. Kxf2 {[%clk 0:00:41.6]} 41... Re4 {[%clk
0:00:08.4]} 42. Bf6 {[%clk 0:00:40]} 42... g5 {[%clk 0:00:08.2]} 43. Rxb7+
{[%clk 0:00:38.7]} 43... Kg8 {[%clk 0:00:07.9]} 44. h7+ {[%clk 0:00:39.6]} 44...
Kf8 {[%clk 0:00:06.8]} 45. h8=Q# {[%clk 0:00:40]} 1-0

[Event "*** Titled Tuesday Blitz"]
[Site "Chess.com"]
[Date "2020.10.20"]
[Round "7"]
[White "PriSachu"]
[Black "HanSchut"]
[Result "1-0"]
[WhiteElo "2450"]
[BlackElo "2266"]
[TimeControl "180+1"]
[EndTime "11:19:48 PDT"]
[Termination "PriSachu won on time"]

1. e4 {[%clk 0:03:00.9]} 1... c5 {[%clk 0:02:58.1]} 2. Nf3 {[%clk 0:03:00.1]}
2... d6 {[%clk 0:02:58.3]} 3. d4 {[%clk 0:02:59.4]} 3... cxd4 {[%clk 0:02:58.7]}
4. Nxd4 {[%clk 0:02:59.9]} 4... Nf6 {[%clk 0:02:59]} 5. Nc3 {[%clk 0:03:00]}
5... a6 {[%clk 0:02:59.5]} 6. h3 {[%clk 0:02:49.4]} 6... e5 {[%clk 0:02:58.4]}
7. Nde2 {[%clk 0:02:45.9]} 7... h5 {[%clk 0:02:57.5]} 8. g3 {[%clk 0:02:44.6]}
8... Be6 {[%clk 0:02:57.5]} 9. Bg2 {[%clk 0:02:37.8]} 9... Be7 {[%clk
0:02:57.4]} 10. a4 {[%clk 0:02:32]} 10... Nbd7 {[%clk 0:02:57.1]} 11. b3 {[%clk
0:02:30.2]} 11... Rc8 {[%clk 0:02:54]} 12. O-O {[%clk 0:02:29]} 12... O-O {[%clk
0:02:51.2]} 13. Be3 {[%clk 0:02:27]} 13... Qa5 {[%clk 0:01:34.4]} 14. Qd2 {[%clk
0:02:17.7]} 14... Rfd8 {[%clk 0:01:29.6]} 15. Rad1 {[%clk 0:02:06.8]} 15... Bf8
{[%clk 0:01:11.9]} 16. f4 {[%clk 0:02:01.5]} 16... Nb8 {[%clk 0:00:25.4]} 17.
Bf3 {[%clk 0:01:33]} 17... Bxh3 {[%clk 0:00:21.9]} 18. Rf2 {[%clk 0:01:33]}
18... Bg4 {[%clk 0:00:21.7]} 19. f5 {[%clk 0:01:24.4]} 19... Qc7 {[%clk
0:00:17]} 20. Bg5 {[%clk 0:01:22.2]} 20... Nbd7 {[%clk 0:00:17.1]} 21. Qe3
{[%clk 0:01:16.2]} 21... d5 {[%clk 0:00:16.8]} 22. Nxd5 {[%clk 0:01:13.9]} 22...
Nxd5 {[%clk 0:00:16.8]} 23. exd5 {[%clk 0:01:13.8]} 23... Bc5 {[%clk 0:00:17.3]}
24. Bxd8 {[%clk 0:01:08.1]} 24... Bxe3 {[%clk 0:00:16.8]} 25. Bxc7 {[%clk
0:01:08.3]} 25... Rxc7 {[%clk 0:00:17.2]} 26. Kg2 {[%clk 0:01:06.8]} 26... Bxf2
{[%clk 0:00:15.5]} 27. Kxf2 {[%clk 0:01:01.6]} 27... Rxc2 {[%clk 0:00:14.7]} 28.
d6 {[%clk 0:00:58.5]} 28... Bxf5 {[%clk 0:00:11]} 29. Bxh5 {[%clk 0:00:52.3]}
29... g6 {[%clk 0:00:09.4]} 30. Bf3 {[%clk 0:00:52.1]} 30... b5 {[%clk 0:00:09]}
31. g4 {[%clk 0:00:52.1]} 31... Be6 {[%clk 0:00:08.9]} 32. Bb7 {[%clk
0:00:49.9]} 32... bxa4 {[%clk 0:00:08.3]} 33. bxa4 {[%clk 0:00:50.3]} 33... Ra2
{[%clk 0:00:08.5]} 34. Bxa6 {[%clk 0:00:49.7]} 34... Rxa4 {[%clk 0:00:08.7]} 35.
Bb5 {[%clk 0:00:48.5]} 35... Rxg4 {[%clk 0:00:08.2]} 36. Rc1 {[%clk 0:00:49]}
36... Kg7 {[%clk 0:00:08]} 37. Rc7 {[%clk 0:00:48.7]} 37... Nf6 {[%clk
0:00:06.7]} 38. d7 {[%clk 0:00:48.4]} 38... Bxd7 {[%clk 0:00:05.2]} 39. Bxd7
{[%clk 0:00:48.2]} 39... Ne4+ {[%clk 0:00:04.3]} 40. Kf3 {[%clk 0:00:45.6]}
40... Rf4+ {[%clk 0:00:03.6]} 41. Ke3 {[%clk 0:00:45.5]} 41... Nf6 {[%clk
0:00:03]} 42. Nxf4 {[%clk 0:00:45.1]} 42... exf4+ {[%clk 0:00:02.9]} 43. Kd4
{[%clk 0:00:43.5]} 43... g5 {[%clk 0:00:02.9]} 44. Bc6 {[%clk 0:00:43.1]} 44...
g4 {[%clk 0:00:02.5]} 45. Ke5 {[%clk 0:00:43.1]} 45... f3 {[%clk 0:00:02.6]} 46.
Kf4 {[%clk 0:00:42.5]} 1-0

[Event "*** Titled Tuesday Blitz"]
[Site "Chess.com"]
[Date "2020.10.20"]
[Round "7"]
[White "SCIM"]
[Black "gliglu"]
[Result "1/2-1/2"]
[WhiteElo "2474"]
[BlackElo "2345"]
[TimeControl "180+1"]
[EndTime "11:19:49 PDT"]
[Termination "Game drawn by agreement"]

1. d4 {[%clk 0:03:00.9]} 1... Nf6 {[%clk 0:02:57.6]} 2. c4 {[%clk 0:02:59.8]}
2... e6 {[%clk 0:02:56.9]} 3. Nc3 {[%clk 0:02:52.7]} 3... Bb4 {[%clk 0:02:55.7]}
4. Bg5 {[%clk 0:02:48.7]} 4... h6 {[%clk 0:02:54]} 5. Bh4 {[%clk 0:02:48]} 5...
c5 {[%clk 0:02:53.7]} 6. e3 {[%clk 0:02:34.4]} 6... O-O {[%clk 0:02:50.3]} 7.
Bd3 {[%clk 0:02:30.5]} 7... cxd4 {[%clk 0:02:45.9]} 8. exd4 {[%clk 0:02:30.3]}
8... d5 {[%clk 0:02:46]} 9. cxd5 {[%clk 0:02:19.8]} 9... exd5 {[%clk 0:02:42.4]}
10. Ne2 {[%clk 0:02:17]} 10... Nc6 {[%clk 0:02:41.6]} 11. O-O {[%clk 0:02:15.8]}
11... Be7 {[%clk 0:02:41.3]} 12. Rc1 {[%clk 0:02:09.4]} 12... Bg4 {[%clk
0:02:40.3]} 13. f3 {[%clk 0:02:03.4]} 13... Be6 {[%clk 0:02:35.8]} 14. Bb1
{[%clk 0:01:57.9]} 14... Qd7 {[%clk 0:02:28.9]} 15. Qd3 {[%clk 0:01:46.8]} 15...
g6 {[%clk 0:02:28.6]} 16. Qd2 {[%clk 0:01:46.3]} 16... Kg7 {[%clk 0:02:25.1]}
17. g4 {[%clk 0:01:24.9]} 17... Ne4 {[%clk 0:02:02.2]} 18. Nxe4 {[%clk
0:01:08.7]} 18... Bxh4 {[%clk 0:01:59.6]} 19. Nc5 {[%clk 0:01:08]} 19... Qd6
{[%clk 0:01:53]} 20. Nxb7 {[%clk 0:01:03.6]} 20... Qb4 {[%clk 0:01:43.9]} 21.
Qxb4 {[%clk 0:00:58.9]} 21... Nxb4 {[%clk 0:01:43.3]} 22. Nc5 {[%clk 0:00:56.7]}
22... Bg5 {[%clk 0:01:37.5]} 23. Nxe6+ {[%clk 0:00:42.1]} 23... fxe6 {[%clk
0:01:36.8]} 24. Rc7+ {[%clk 0:00:42.7]} 24... Rf7 {[%clk 0:01:36.2]} 25. Rxf7+
{[%clk 0:00:42.1]} 25... Kxf7 {[%clk 0:01:36.3]} 26. f4 {[%clk 0:00:40.1]} 26...
Bf6 {[%clk 0:01:36]} 27. Rc1 {[%clk 0:00:39.7]} 27... Re8 {[%clk 0:01:25.3]} 28.
a3 {[%clk 0:00:39.6]} 28... Na6 {[%clk 0:01:24.3]} 29. Kf2 {[%clk 0:00:36.2]}
29... Re7 {[%clk 0:01:23.4]} 30. Ke3 {[%clk 0:00:35.3]} 30... Rc7 {[%clk
0:01:22.2]} 31. Bd3 {[%clk 0:00:31.2]} 31... Rxc1 {[%clk 0:01:18.5]} 32. Nxc1
{[%clk 0:00:32.1]} 32... Nc7 {[%clk 0:01:18]} 33. b4 {[%clk 0:00:26.7]} 33... g5
{[%clk 0:01:17.9]} 34. f5 {[%clk 0:00:26.6]} 34... e5 {[%clk 0:01:17.6]} 35. Nb3
{[%clk 0:00:20.7]} 35... Ne8 {[%clk 0:01:15.5]} 36. dxe5 {[%clk 0:00:18.7]}
36... Bxe5 {[%clk 0:01:15.4]} 37. h3 {[%clk 0:00:19.6]} 37... Nd6 {[%clk
0:01:13.3]} 38. Nc5 {[%clk 0:00:18.3]} 38... Bb2 {[%clk 0:01:08.3]} 39. a4
{[%clk 0:00:16.1]} 39... Kf6 {[%clk 0:01:06.8]} 40. b5 {[%clk 0:00:15]} 40...
Nc8 {[%clk 0:00:59.7]} 41. a5 {[%clk 0:00:12.7]} 41... Ke5 {[%clk 0:00:57.9]}
42. b6 {[%clk 0:00:10.2]} 42... axb6 {[%clk 0:00:54.4]} 43. Nd7+ {[%clk
0:00:09.5]} 43... Kd6 {[%clk 0:00:53.7]} 44. Nxb6 {[%clk 0:00:09.3]} 44... Nxb6
{[%clk 0:00:49.6]} 45. axb6 {[%clk 0:00:10.2]} 45... Kc6 {[%clk 0:00:49.8]} 46.
Bc2 {[%clk 0:00:08.2]} 46... Kxb6 {[%clk 0:00:49.3]} 47. Bb3 {[%clk 0:00:09.1]}
47... Kc5 {[%clk 0:00:49.2]} 48. Kd3 {[%clk 0:00:09.5]} 48... Be5 {[%clk
0:00:48.2]} 49. Ba4 {[%clk 0:00:08.6]} 49... Kd6 {[%clk 0:00:46.2]} 1/2-1/2

[Event "*** Titled Tuesday Blitz"]
[Site "Chess.com"]
[Date "2020.10.20"]
[Round "7"]
[White "GMJustin"]
[Black "chesstrainer2042"]
[Result "0-1"]
[WhiteElo "2275"]
[BlackElo "2455"]
[TimeControl "180+1"]
[EndTime "11:19:49 PDT"]
[Termination "chesstrainer2042 won on time"]

1. d4 {[%clk 0:02:49.7]} 1... d5 {[%clk 0:03:00]} 2. c4 {[%clk 0:02:47.1]} 2...
c6 {[%clk 0:03:00.5]} 3. Nc3 {[%clk 0:02:41.1]} 3... Nf6 {[%clk 0:03:01]} 4. Nf3
{[%clk 0:02:35.5]} 4... e6 {[%clk 0:03:01.4]} 5. e3 {[%clk 0:02:25.7]} 5... Nbd7
{[%clk 0:03:00.3]} 6. Qc2 {[%clk 0:02:25.4]} 6... Bd6 {[%clk 0:02:58.9]} 7. g4
{[%clk 0:02:24.9]} 7... h6 {[%clk 0:02:47.7]} 8. Rg1 {[%clk 0:02:24.3]} 8...
dxc4 {[%clk 0:02:43.1]} 9. Bxc4 {[%clk 0:02:11.7]} 9... b5 {[%clk 0:02:43.2]}
10. Bd3 {[%clk 0:02:09.1]} 10... Bb7 {[%clk 0:02:43.3]} 11. h4 {[%clk
0:01:57.1]} 11... b4 {[%clk 0:02:07.7]} 12. Ne4 {[%clk 0:01:52.9]} 12... Nxe4
{[%clk 0:02:08]} 13. Bxe4 {[%clk 0:01:52.7]} 13... Qb6 {[%clk 0:02:03]} 14. g5
{[%clk 0:01:47.2]} 14... h5 {[%clk 0:01:55]} 15. Nd2 {[%clk 0:01:41.9]} 15...
Qc7 {[%clk 0:01:46.5]} 16. Nc4 {[%clk 0:01:38.9]} 16... Be7 {[%clk 0:01:46.5]}
17. Bd2 {[%clk 0:01:31.8]} 17... c5 {[%clk 0:01:46.3]} 18. Ne5 {[%clk 0:00:22]}
18... Nxe5 {[%clk 0:01:32.2]} 19. dxe5 {[%clk 0:00:20.5]} 19... O-O-O {[%clk
0:01:31.3]} 20. O-O-O {[%clk 0:00:12.8]} 20... Qxe5 {[%clk 0:01:27.6]} 21. Bxb7+
{[%clk 0:00:07]} 21... Kxb7 {[%clk 0:01:27.6]} 22. Qc4 {[%clk 0:00:07.1]} 22...
a6 {[%clk 0:01:14.2]} 23. Kb1 {[%clk 0:00:05.4]} 23... Qd5 {[%clk 0:01:13.3]}
24. Qc2 {[%clk 0:00:03.8]} 24... Qd3 {[%clk 0:01:07.6]} 25. e4 {[%clk
0:00:04.1]} 25... c4 {[%clk 0:00:56.1]} 26. Be3 {[%clk 0:00:04.1]} 26... Qxc2+
{[%clk 0:00:49.9]} 27. Kxc2 {[%clk 0:00:04.3]} 27... g6 {[%clk 0:00:47]} 28. f4
{[%clk 0:00:04.4]} 28... Kc6 {[%clk 0:00:43]} 29. Rgf1 {[%clk 0:00:04.4]} 29...
a5 {[%clk 0:00:31.4]} 30. Rxd8 {[%clk 0:00:04.2]} 30... Rxd8 {[%clk 0:00:30.5]}
31. f5 {[%clk 0:00:04.3]} 31... Rd3 {[%clk 0:00:23.1]} 32. fxg6 {[%clk
0:00:03.1]} 32... fxg6 {[%clk 0:00:22.3]} 33. Bd2 {[%clk 0:00:02.6]} 33... a4
{[%clk 0:00:20.7]} 34. Rf7 {[%clk 0:00:02.2]} 34... b3+ {[%clk 0:00:20.8]} 0-1

[Event "*** Titled Tuesday Blitz"]
[Site "Chess.com"]
[Date "2020.10.20"]
[Round "7"]
[White "SamuelGhimpu2003"]
[Black "AniJak"]
[Result "1-0"]
[WhiteElo "2570"]
[BlackElo "2397"]
[TimeControl "180+1"]
[EndTime "11:19:52 PDT"]
[Termination "SamuelGhimpu2003 won by resignation"]

1. d4 {[%clk 0:02:47.3]} 1... d5 {[%clk 0:02:59.4]} 2. Nc3 {[%clk 0:02:47.3]}
2... f5 {[%clk 0:02:56.8]} 3. Bg5 {[%clk 0:02:45.4]} 3... g6 {[%clk 0:02:55.3]}
4. e3 {[%clk 0:02:42.1]} 4... Bg7 {[%clk 0:02:55.3]} 5. h4 {[%clk 0:02:41.6]}
5... Nf6 {[%clk 0:02:54.6]} 6. h5 {[%clk 0:02:41]} 6... Nxh5 {[%clk 0:02:53.7]}
7. Rxh5 {[%clk 0:02:40.3]} 7... gxh5 {[%clk 0:02:54.6]} 8. Qxh5+ {[%clk
0:02:40.7]} 8... Kf8 {[%clk 0:02:48.6]} 9. O-O-O {[%clk 0:02:34.9]} 9... Be6
{[%clk 0:02:47.8]} 10. Nf3 {[%clk 0:02:31.2]} 10... Nc6 {[%clk 0:02:36.9]} 11.
Bd3 {[%clk 0:02:28.8]} 11... Qe8 {[%clk 0:02:36.3]} 12. Qh3 {[%clk 0:02:26.9]}
12... Qf7 {[%clk 0:02:29.4]} 13. a3 {[%clk 0:02:21.9]} 13... f4 {[%clk
0:02:28.9]} 14. Qh2 {[%clk 0:02:20.6]} 14... fxe3 {[%clk 0:02:27.7]} 15. fxe3
{[%clk 0:02:21.5]} 15... Kg8 {[%clk 0:02:18.6]} 16. Qxc7 {[%clk 0:02:19.3]}
16... Rc8 {[%clk 0:02:07.6]} 17. Qxb7 {[%clk 0:02:18.4]} 17... h6 {[%clk
0:01:56.2]} 18. Bf4 {[%clk 0:02:13.8]} 18... Bf6 {[%clk 0:01:52.4]} 19. Bb5
{[%clk 0:01:47]} 19... Na5 {[%clk 0:01:40.1]} 20. Qxa7 {[%clk 0:01:44.1]} 20...
Nc4 {[%clk 0:01:37]} 21. Bxc4 {[%clk 0:01:36.3]} 21... Rxc4 {[%clk 0:01:34.9]}
22. Ne5 {[%clk 0:01:35.1]} 22... Bxe5 {[%clk 0:01:29.1]} 23. Bxe5 {[%clk
0:01:36]} 23... Rh7 {[%clk 0:01:26.2]} 24. Kb1 {[%clk 0:01:19.2]} 24... Qe8
{[%clk 0:01:18.8]} 25. e4 {[%clk 0:01:10.7]} 25... dxe4 {[%clk 0:01:14.8]} 26.
d5 {[%clk 0:01:11.1]} 26... Bg4 {[%clk 0:01:09.2]} 27. Re1 {[%clk 0:01:11.2]}
27... e6 {[%clk 0:01:02.2]} 28. Qa5 {[%clk 0:00:55.2]} 28... exd5 {[%clk
0:00:58.5]} 29. Qxd5+ {[%clk 0:00:56.1]} 29... Be6 {[%clk 0:00:58.2]} 30. Qd2
{[%clk 0:00:51.1]} 30... Qd7 {[%clk 0:00:48]} 31. Qf4 {[%clk 0:00:42.6]} 31...
Qf7 {[%clk 0:00:39.6]} 32. Qg3+ {[%clk 0:00:36.1]} 32... Kf8 {[%clk 0:00:34]}
33. Nxe4 {[%clk 0:00:30.5]} 33... Bf5 {[%clk 0:00:33.8]} 34. Bd6+ {[%clk
0:00:27.2]} 34... Ke8 {[%clk 0:00:30.6]} 35. Qe5+ {[%clk 0:00:20.5]} 35... Kd8
{[%clk 0:00:27.4]} 36. Nc3 {[%clk 0:00:18.8]} 36... Rxc3 {[%clk 0:00:20.2]} 37.
Qxc3 {[%clk 0:00:17.9]} 37... Qb7 {[%clk 0:00:18.6]} 38. Qf6+ {[%clk 0:00:16.3]}
38... Kd7 {[%clk 0:00:18.5]} 39. Qxf5+ {[%clk 0:00:14.3]} 39... Kxd6 {[%clk
0:00:19]} 40. Re6+ {[%clk 0:00:14.3]} 40... Kc7 {[%clk 0:00:18]} 41. Qxh7+
{[%clk 0:00:15.2]} 41... Kb8 {[%clk 0:00:17.8]} 42. Qxb7+ {[%clk 0:00:16.1]}
42... Kxb7 {[%clk 0:00:18.1]} 43. Rxh6 {[%clk 0:00:17]} 1-0

[Event "*** Titled Tuesday Blitz"]
[Site "Chess.com"]
[Date "2020.10.20"]
[Round "7"]
[White "TrimitziosP7"]
[Black "eljanov"]
[Result "1/2-1/2"]
[WhiteElo "2770"]
[BlackElo "2882"]
[TimeControl "180+1"]
[EndTime "11:19:53 PDT"]
[Termination "Game drawn by agreement"]

1. e4 {[%clk 0:03:00.9]} 1... e5 {[%clk 0:02:58.8]} 2. Bc4 {[%clk 0:03:00.8]}
2... Nf6 {[%clk 0:02:58]} 3. d4 {[%clk 0:02:59.9]} 3... exd4 {[%clk 0:02:54.2]}
4. Nf3 {[%clk 0:02:53.2]} 4... Nxe4 {[%clk 0:02:45.7]} 5. Qxd4 {[%clk
0:02:52.8]} 5... d5 {[%clk 0:02:19.8]} 6. Bxd5 {[%clk 0:02:48]} 6... Nf6 {[%clk
0:02:20]} 7. Bxf7+ {[%clk 0:02:40.8]} 7... Kxf7 {[%clk 0:02:20.2]} 8. Qxd8
{[%clk 0:02:41.2]} 8... Bb4+ {[%clk 0:02:20.7]} 9. Qd2 {[%clk 0:02:41.1]} 9...
Re8+ {[%clk 0:02:18.2]} 10. Kf1 {[%clk 0:02:38.1]} 10... Bxd2 {[%clk 0:02:17.5]}
11. Bxd2 {[%clk 0:02:36.9]} 11... Nc6 {[%clk 0:02:12.6]} 12. Nc3 {[%clk
0:02:31.3]} 12... Bf5 {[%clk 0:02:12.5]} 13. Rc1 {[%clk 0:02:27.4]} 13... Rad8
{[%clk 0:02:12.3]} 14. h3 {[%clk 0:02:23.2]} 14... Nb4 {[%clk 0:02:03.4]} 15. g4
{[%clk 0:02:17.5]} 15... Bxc2 {[%clk 0:02:00.8]} 16. a3 {[%clk 0:02:16.8]} 16...
Bd3+ {[%clk 0:01:57]} 17. Kg2 {[%clk 0:02:17]} 17... Nbd5 {[%clk 0:01:56]} 18.
Rhe1 {[%clk 0:02:14]} 18... Kg8 {[%clk 0:01:33.4]} 19. Ne5 {[%clk 0:02:03.2]}
19... Ba6 {[%clk 0:01:30.5]} 20. f4 {[%clk 0:01:56.6]} 20... Nxc3 {[%clk
0:01:21.6]} 21. Bxc3 {[%clk 0:01:56.1]} 21... Nd5 {[%clk 0:01:20.1]} 22. Kg3
{[%clk 0:01:53.4]} 22... c6 {[%clk 0:01:17]} 23. f5 {[%clk 0:01:49.8]} 23...
Nxc3 {[%clk 0:00:59]} 24. Rxc3 {[%clk 0:01:46]} 24... Rd2 {[%clk 0:00:59.5]} 25.
b4 {[%clk 0:01:40.3]} 25... h6 {[%clk 0:00:59.6]} 26. h4 {[%clk 0:01:34.1]}
26... Rd5 {[%clk 0:00:52.7]} 27. Nf3 {[%clk 0:01:26.4]} 27... Rxe1 {[%clk
0:00:50.5]} 28. Nxe1 {[%clk 0:01:27.3]} 28... h5 {[%clk 0:00:48.6]} 29. Ng2
{[%clk 0:01:21]} 29... hxg4 {[%clk 0:00:46.2]} 30. Kxg4 {[%clk 0:01:21.9]} 30...
Rd3 {[%clk 0:00:43.1]} 31. Rxd3 {[%clk 0:01:18.8]} 31... Bxd3 {[%clk 0:00:44]}
32. Kf4 {[%clk 0:01:16.8]} 32... Kf7 {[%clk 0:00:41.8]} 33. Ke5 {[%clk
0:01:16.7]} 33... b6 {[%clk 0:00:38.1]} 34. Nf4 {[%clk 0:01:12.7]} 34... Bc2
{[%clk 0:00:35.7]} 35. Ne6 {[%clk 0:01:06.9]} 35... Ba4 {[%clk 0:00:30.8]} 36.
Ng5+ {[%clk 0:01:03.3]} 36... Ke7 {[%clk 0:00:30.7]} 37. Ne4 {[%clk 0:01:01.8]}
37... Bc2 {[%clk 0:00:30.6]} 38. f6+ {[%clk 0:01:01.5]} 38... gxf6+ {[%clk
0:00:31]} 39. Nxf6 {[%clk 0:01:02.4]} 39... c5 {[%clk 0:00:30.3]} 40. bxc5
{[%clk 0:01:03.3]} 40... bxc5 {[%clk 0:00:30.6]} 41. h5 {[%clk 0:01:02.5]} 41...
c4 {[%clk 0:00:29.8]} 42. h6 {[%clk 0:01:02.6]} 42... c3 {[%clk 0:00:25.9]} 43.
Nd5+ {[%clk 0:01:01.9]} 43... Kf7 {[%clk 0:00:26.3]} 44. Nxc3 {[%clk 0:01:00.5]}
44... Kg6 {[%clk 0:00:26.7]} 45. Nb5 {[%clk 0:01:00.8]} 45... a5 {[%clk
0:00:27]} 46. Nd4 {[%clk 0:01:00]} 46... Bd1 {[%clk 0:00:27.4]} 47. Nf5 {[%clk
0:00:57.9]} 47... Bc2 {[%clk 0:00:27.3]} 48. Ne3 {[%clk 0:00:57.1]} 48... Bb3
{[%clk 0:00:26.5]} 49. Kd4 {[%clk 0:00:53]} 49... Kxh6 {[%clk 0:00:26.6]} 50.
Kc5 {[%clk 0:00:53.9]} 50... Kg6 {[%clk 0:00:26.7]} 51. Kb5 {[%clk 0:00:54.2]}
51... a4 {[%clk 0:00:27.1]} 52. Nf1 {[%clk 0:00:52.5]} 52... Kf6 {[%clk
0:00:26.7]} 53. Nd2 {[%clk 0:00:52.9]} 53... Ke5 {[%clk 0:00:26.4]} 54. Kb4
{[%clk 0:00:51.5]} 54... Bd1 {[%clk 0:00:26.5]} 55. Nc4+ {[%clk 0:00:51.3]}
55... Kd4 {[%clk 0:00:26.3]} 56. Nb2 {[%clk 0:00:50.4]} 56... Bb3 {[%clk
0:00:26.6]} 57. Nxa4 {[%clk 0:00:47.7]} 57... Bxa4 {[%clk 0:00:27]} 58. Kxa4
{[%clk 0:00:47.9]} 58... Kc4 {[%clk 0:00:27.5]} 1/2-1/2

[Event "*** Titled Tuesday Blitz"]
[Site "Chess.com"]
[Date "2020.10.20"]
[Round "7"]
[White "paulrusan"]
[Black "ThePatrick27"]
[Result "0-1"]
[WhiteElo "2240"]
[BlackElo "2565"]
[TimeControl "180+1"]
[EndTime "11:19:54 PDT"]
[Termination "ThePatrick27 won by resignation"]

1. e4 {[%clk 0:03:00.9]} 1... e5 {[%clk 0:02:59.4]} 2. Nf3 {[%clk 0:03:00.4]}
2... Nc6 {[%clk 0:02:59.1]} 3. Bc4 {[%clk 0:03:00.4]} 3... Bc5 {[%clk
0:02:58.8]} 4. b4 {[%clk 0:03:00.3]} 4... Bxb4 {[%clk 0:02:58.7]} 5. c3 {[%clk
0:03:00.4]} 5... Be7 {[%clk 0:02:59.3]} 6. d4 {[%clk 0:02:59.9]} 6... Na5 {[%clk
0:02:57.8]} 7. Be2 {[%clk 0:02:59.7]} 7... exd4 {[%clk 0:02:57.3]} 8. Qxd4
{[%clk 0:02:59.7]} 8... Nf6 {[%clk 0:02:56.6]} 9. e5 {[%clk 0:02:59.8]} 9... Nc6
{[%clk 0:02:56.7]} 10. Qh4 {[%clk 0:02:59.1]} 10... Nd5 {[%clk 0:02:53.3]} 11.
Qg3 {[%clk 0:02:59.4]} 11... O-O {[%clk 0:02:39.9]} 12. O-O {[%clk 0:02:56.8]}
12... Re8 {[%clk 0:02:34.5]} 13. Rd1 {[%clk 0:02:56.7]} 13... Nb6 {[%clk
0:02:34.1]} 14. c4 {[%clk 0:02:50.9]} 14... d6 {[%clk 0:02:31.5]} 15. Nc3 {[%clk
0:02:50.3]} 15... Bf5 {[%clk 0:02:28.2]} 16. c5 {[%clk 0:02:44.6]} 16... Nc8
{[%clk 0:02:26]} 17. Nd5 {[%clk 0:02:34.4]} 17... Bg6 {[%clk 0:02:14.4]} 18. Bb5
{[%clk 0:02:20]} 18... Bf8 {[%clk 0:01:44.7]} 19. Bg5 {[%clk 0:02:13.3]} 19...
Qd7 {[%clk 0:01:44.4]} 20. Rac1 {[%clk 0:01:46.5]} 20... a6 {[%clk 0:01:42]} 21.
Ba4 {[%clk 0:01:44.4]} 21... N8e7 {[%clk 0:01:16.5]} 22. cxd6 {[%clk 0:01:31.7]}
22... Nxd5 {[%clk 0:01:14.1]} 23. Rxd5 {[%clk 0:01:30.3]} 23... cxd6 {[%clk
0:01:13]} 24. exd6 {[%clk 0:01:17.6]} 24... Be4 {[%clk 0:01:01.6]} 25. Bxc6
{[%clk 0:01:12.1]} 25... bxc6 {[%clk 0:00:57.5]} 26. Rd4 {[%clk 0:01:02.7]}
26... Bd5 {[%clk 0:00:51]} 27. Rg4 {[%clk 0:00:42]} 27... Qxd6 {[%clk
0:00:41.5]} 28. Bf4 {[%clk 0:00:42]} 28... Qa3 {[%clk 0:00:34]} 29. Rd1 {[%clk
0:00:37.1]} 29... g6 {[%clk 0:00:30.9]} 30. h4 {[%clk 0:00:35.8]} 30... Qa4
{[%clk 0:00:23.6]} 31. Rd4 {[%clk 0:00:30.6]} 31... Qxa2 {[%clk 0:00:22.7]} 32.
h5 {[%clk 0:00:29.2]} 32... Bxf3 {[%clk 0:00:20.5]} 33. hxg6 {[%clk 0:00:16.3]}
33... hxg6 {[%clk 0:00:18.3]} 34. Rxg6+ {[%clk 0:00:15.2]} 34... fxg6 {[%clk
0:00:18.4]} 35. Qxg6+ {[%clk 0:00:15.2]} 35... Bg7 {[%clk 0:00:18.5]} 36. Bh6
{[%clk 0:00:14.8]} 36... Qa1+ {[%clk 0:00:17.4]} 37. Kh2 {[%clk 0:00:14.5]}
37... Qxd4 {[%clk 0:00:17.4]} 38. gxf3 {[%clk 0:00:13.3]} 38... Qe5+ {[%clk
0:00:16.1]} 39. Kg2 {[%clk 0:00:12.5]} 39... Re6 {[%clk 0:00:15.2]} 40. Qxg7+
{[%clk 0:00:12.1]} 40... Qxg7+ {[%clk 0:00:15]} 41. Bxg7 {[%clk 0:00:12.6]}
41... Kxg7 {[%clk 0:00:15.9]} 0-1